[Event "Festival Groningen-A 2024"]
[Site "Groningen"]
[Date "2024.12.21"]
[Round "1.29"]
[White "Albers, Sasa"]
[Black "Avetisyan, Ani"]
[Result "1-0"]
[ECO "B48"]
[WhiteElo "2268"]
[BlackElo "2059"]
[Annotator "RC"]
[PlyCount "88"]
[EventDate "2024.12.21"]
[EventType "swiss"]
[EventCountry "NED"]
[SourceTitle "playchess.com"]
[Source "ChessBase"]
[SourceQuality "1"]
[TimeControl "40/5400+30:1800+30"]

1. e4 {[%emt 0:00:02]} c5 {[%emt 0:00:27]} 2. Nf3 {[%emt 0:00:05]} e6 {[%emt 0:00:24]} 3. d4 {[%emt 0:00:05]} cxd4 {[%emt 0:00:06]} 4. Nxd4 {[%emt 0:00:07]} Nc6 {[%emt 0:00:06]} 5. Nc3 {[%emt 0:00:26]} Qc7 {[%emt 0:00:35]} 6. Be3 {[%emt 0:00:58]} a6 {[%emt 0:00:43]} 7. Qd2 {[%emt 0:00:06]} Nf6 {[%emt 0:04:44]} 8. f4 {[%emt 0:00:10]} Bb4 {[%emt 0:05:19]} 9. Bd3 {[%emt 0:00:08]} b5 {[%emt 0:03:46]} 10. a4 {[%emt 0:04:18]} Bb7 {[%emt 0:14:59]} 11. axb5 {[%emt 0:06:19]} Nxd4 {[%emt 0:01:09]} 12. Bxd4 {[%emt 0:01:15]} Nxe4 {[%emt 0:06:01]} 13. Bxe4 {[%emt 0:03:23]} Bxe4 {[%emt 0:00:10]} 14. bxa6 {[%emt 0:18:06]} f6 {[%emt 0:15:20]} 15. O-O {[%emt 1:02:32]} O-O {[%emt 0:02:45]} 16. Qe2 {[%emt 0:00:00]} Bxc3 {[%emt 0:05:26]} 17. Qxe4 {[%emt 0:00:00]} Bxd4+ {[%emt 0:07:13]} 18. Qxd4 {[%emt 0:00:00]} Rfb8 {[%emt 0:00:21]} 19. Rfd1 {[%emt 0:00:00]} Ra7 {[%emt 0:01:50]} 20. Rd3 {[%emt 0:00:00]} Qb6 {[%emt 0:04:17]} 21. Qxb6 {[%emt 0:00:00]} Rxb6 {[%emt 0:00:01]} 22. Ra2 {[%emt 0:00:00]} Kf7 {[%emt 0:02:02]} 23. Rda3 {[%emt 0:00:00]} d5 {[%emt 0:02:34]} 24. c3 {[%emt 0:00:00]} e5 {[%emt 0:01:44]} 25. fxe5 {[%emt 0:00:00]} fxe5 {[%emt 0:00:10]} 26. Ra5 {[%emt 0:00:00]} Ke6 {[%emt 0:01:56]} 27. Kf2 {[%emt 0:00:00]} Rb3 {[%emt 0:05:58]} 28. Ke2 {[%emt 0:00:00]} Kd6 {[%emt 0:01:31]} 29. Kd3 {[%emt 0:00:00]} g6 {[%emt 0:05:24]} 30. Kc2 {[%emt 0:01:36]} Rb8 {[%emt 0:00:08]} 31. b4 {[%emt 0:00:56]} Rf8 {[%emt 0:04:08]} 32. Kb3 {[%emt 0:00:22]} e4 {[%emt 0:00:52]} 33. Rd2 {[%emt 0:00:52]} Rf5 {[%emt 0:02:29]} 34. c4 {[%emt 0:00:17]} e3 {[%emt 0:01:13]} 35. Rdxd5+ {[%emt 0:00:26]} Rxd5 {[%emt 0:00:51]} 36. Rxd5+ {[%emt 0:00:15]} Ke6 {[%emt 0:00:13]} 37. Rd3 {[%emt 0:01:02]} Rxa6 {[%emt 0:00:45]} 38. Rxe3+ {[%emt 0:00:06]} Kd6 {[%emt 0:00:22]} 39. c5+ {[%emt 0:00:31]} Kd5 {[%emt 0:00:26]} 40. Rd3+ {[%emt 0:00:27]} Ke5 {[%emt 0:00:09]} 41. b5 {[%emt 0:30:45]} Ra1 {[%emt 0:30:14]} 42. c6 {[%emt 0:01:10]} Rc1 {[%emt 0:00:42]} 43. Rc3 {[%emt 0:01:09]} Rb1+ {[%emt 0:00:11]} 44. Kc2 {[%emt 0:00:14]} Kd5 {[%emt 0:02:46]} 1-0

[Event "Festival Groningen-A 2024"]
[Site "Groningen"]
[Date "2024.12.21"]
[Round "1.30"]
[White "Groenewoud, Joel"]
[Black "Van Rootselaar, Rik"]
[Result "1-0"]
[ECO "C02"]
[WhiteElo "2058"]
[BlackElo "2265"]
[Annotator "RC"]
[PlyCount "59"]
[EventDate "2024.12.21"]
[EventType "swiss"]
[EventCountry "NED"]
[SourceTitle "playchess.com"]
[Source "ChessBase"]
[SourceQuality "1"]
[TimeControl "40/5400+30:1800+30"]

1. e4 {[%emt 0:00:03]} e6 {[%emt 0:00:12]} 2. d4 {[%emt 0:00:20]} d5 {[%emt 0:00:06]} 3. e5 {[%emt 0:00:05]} c5 {[%emt 0:00:06]} 4. c3 {[%emt 0:00:04]} Nc6 {[%emt 0:00:08]} 5. Nf3 {[%emt 0:00:06]} Bd7 {[%emt 0:00:23]} 6. Be2 {[%emt 0:01:20]} Nge7 {[%emt 0:01:42]} 7. O-O {[%emt 0:01:45]} Ng6 {[%emt 0:06:33]} 8. Na3 {[%emt 0:01:56]} f6 {[%emt 0:17:36]} 9. Bd3 {[%emt 0:06:48]} cxd4 {[%emt 0:07:37]} 10. cxd4 {[%emt 0:00:51]} Rc8 {[%emt 0:04:55]} 11. Re1 {[%emt 0:13:33]} Nb4 {[%emt 0:06:43]} 12. Bb1 {[%emt 0:06:35]} Be7 {[%emt 0:00:33]} 13. exf6 {[%emt 0:05:57]} gxf6 {[%emt 0:01:10]} 14. Bh6 {[%emt 0:03:19]} Kf7 {[%emt 0:06:27]} 15. h4 {[%emt 0:02:04]} Bf8 {[%emt 0:02:09]} 16. Bd2 {[%emt 0:07:01]} Qb6 {[%emt 0:06:03]} 17. h5 {[%emt 0:13:47]} Ne7 {[%emt 0:00:07]} 18. Qb3 {[%emt 0:03:24]} Nec6 {[%emt 0:02:43]} 19. Qe3 {[%emt 0:04:39]} Bd6 {[%emt 0:02:48]} 20. Qh6 {[%emt 0:02:36]} Bf8 {[%emt 0:04:10]} 21. Qf4 {[%emt 0:00:47]} Qc7 {[%emt 0:06:10]} 22. Ng5+ {[%emt 0:04:20]} Ke7 {[%emt 0:00:59]} 23. Qf3 {[%emt 0:02:10]} Re8 {[%emt 0:16:33]} 24. Bf5 {[%emt 0:04:09]} Nxd4 {[%emt 0:01:47]} 25. Qg4 {[%emt 0:02:34]} Nbc6 {[%emt 0:03:20]} 26. Bxe6 {[%emt 0:01:17]} Nxe6 {[%emt 0:00:14]} 27. Rxe6+ {[%emt 0:01:06]} Bxe6 {[%emt 0:00:15]} 28. Qxe6+ {[%emt 0:00:06]} Kd8 {[%emt 0:00:03]} 29. Nf7+ {[%emt 0:00:13]} Qxf7 {[%emt 0:00:06]} 30. Qxf7 {[%emt 0:00:07]} 1-0

[Event "Festival Groningen-A 2024"]
[Site "Groningen"]
[Date "2024.12.22"]
[Round "2.5"]
[White "Maatman, Nick"]
[Black "Van Roon, Sjoerd"]
[Result "1/2-1/2"]
[ECO "D46"]
[WhiteElo "2375"]
[BlackElo "2285"]
[Annotator "RC"]
[PlyCount "68"]
[EventDate "2024.12.21"]
[EventType "swiss"]
[EventCountry "NED"]
[SourceTitle "playchess.com"]
[Source "ChessBase"]
[SourceQuality "1"]
[TimeControl "40/5400+30:1800+30"]

1. d4 {[%emt 0:01:46]} d5 {[%emt 0:00:07]} 2. c4 {[%emt 0:00:04]} c6 {[%emt 0:00:02]} 3. Nf3 {[%emt 0:00:03]} Nf6 {[%emt 0:00:03]} 4. e3 {[%emt 0:00:04]} e6 {[%emt 0:05:09]} 5. Nbd2 {[%emt 0:00:42]} Nbd7 {[%emt 0:00:41]} 6. Bd3 {[%emt 0:00:28]} Bd6 {[%emt 0:00:22]} 7. O-O {[%emt 0:00:06]} O-O {[%emt 0:00:05]} 8. e4 {[%emt 0:00:03]} dxe4 {[%emt 0:06:43]} 9. Nxe4 {[%emt 0:00:42]} Nxe4 {[%emt 0:07:30]} 10. Bxe4 {[%emt 0:02:07]} f5 {[%emt 0:00:07]} 11. Bc2 {[%emt 0:03:54]} e5 {[%emt 0:00:17]} 12. Bg5 {[%emt 0:37:23]} Qe8 {[%emt 0:26:47]} 13. Nxe5 {[%emt 0:00:55]} Nxe5 {[%emt 0:12:25]} 14. Re1 {[%emt 0:01:11]} Be6 {[%emt 0:00:22]} 15. dxe5 {[%emt 0:05:45]} Bb4 {[%emt 0:00:14]} 16. Bd2 {[%emt 0:10:35]} Rd8 {[%emt 0:02:02]} 17. Bxb4 {[%emt 0:00:24]} Rxd1 {[%emt 0:00:03]} 18. Raxd1 {[%emt 0:00:04]} Rf7 {[%emt 0:00:20]} 19. Rd6 {[%emt 0:07:02]} Rd7 {[%emt 0:00:37]} 20. c5 {[%emt 0:05:06]} f4 {[%emt 0:08:55]} 21. Bc3 {[%emt 0:07:49]} f3 {[%emt 0:14:59]} 22. gxf3 {[%emt 0:00:35]} Qf7 {[%emt 0:02:24]} 23. Re3 {[%emt 0:02:19]} Re7 {[%emt 0:00:43]} 24. Bb3 {[%emt 0:03:18]} Kf8 {[%emt 0:02:02]} 25. Bxe6 {[%emt 0:06:07]} Rxe6 {[%emt 0:00:04]} 26. Rxe6 {[%emt 0:00:03]} Qxe6 {[%emt 0:00:04]} 27. Re4 {[%emt 0:00:08]} h5 {[%emt 0:02:11]} 28. a3 {[%emt 0:01:29]} Ke7 {[%emt 0:00:55]} 29. Rb4 {[%emt 0:01:08]} Qg6+ {[%emt 0:01:00]} 30. Kf1 {[%emt 0:00:05]} Qd3+ {[%emt 0:00:42]} 31. Kg2 {[%emt 0:00:14]} Qg6+ {[%emt 0:00:05]} 32. Kf1 {[%emt 0:00:42]} Qd3+ {[%emt 0:00:02]} 33. Kg2 {[%emt 0:02:01]} Qg6+ {[%emt 0:00:04]} 34. Kf1 {[%emt 0:00:03]} Qd3+ {[%emt 0:09:24]} 1/2-1/2

[Event "Festival Groningen-A 2024"]
[Site "Groningen"]
[Date "2024.12.22"]
[Round "2.6"]
[White "Pham, Khoi"]
[Black "Smeets, Kobe"]
[Result "1/2-1/2"]
[ECO "D12"]
[WhiteElo "2285"]
[BlackElo "2349"]
[Annotator "RC"]
[PlyCount "120"]
[EventDate "2024.12.21"]
[EventType "swiss"]
[EventCountry "NED"]
[SourceTitle "playchess.com"]
[Source "ChessBase"]
[SourceQuality "1"]
[TimeControl "40/5400+30:1800+30"]

1. d4 {[%emt 0:00:03]} d5 {[%emt 0:00:09]} 2. c4 {[%emt 0:00:05]} c6 {[%emt 0:00:13]} 3. Nf3 {[%emt 0:00:06]} Nf6 {[%emt 0:00:10]} 4. e3 {[%emt 0:00:04]} Bf5 {[%emt 0:01:21]} 5. Nc3 {[%emt 0:00:06]} e6 {[%emt 0:00:07]} 6. Nh4 {[%emt 0:00:06]} Be4 {[%emt 0:00:05]} 7. f3 {[%emt 0:00:06]} Bg6 {[%emt 0:00:02]} 8. Bd2 {[%emt 0:00:08]} dxc4 {[%emt 0:00:21]} 9. Bxc4 {[%emt 0:00:28]} b5 {[%emt 0:00:10]} 10. Nxg6 {[%emt 0:02:44]} hxg6 {[%emt 0:00:14]} 11. Bd3 {[%emt 0:00:16]} Nbd7 {[%emt 0:01:01]} 12. Qc2 {[%emt 0:03:04]} a6 {[%emt 0:04:25]} 13. O-O-O {[%emt 0:25:04]} c5 {[%emt 0:01:02]} 14. g4 {[%emt 0:15:24]} cxd4 {[%emt 0:11:13]} 15. exd4 {[%emt 0:01:36]} b4 {[%emt 0:02:06]} 16. Na4 {[%emt 0:08:20]} Rc8 {[%emt 0:04:22]} 17. Bc4 {[%emt 0:00:35]} Nd5 {[%emt 0:12:49]} 18. Kb1 {[%emt 0:02:00]} N7b6 {[%emt 0:05:00]} 19. Nc5 {[%emt 0:03:49]} Bxc5 {[%emt 0:03:26]} 20. Bxa6 {[%emt 0:00:13]} Bd6 {[%emt 0:03:38]} 21. Bxc8 {[%emt 0:00:48]} Qxc8 {[%emt 0:00:26]} 22. Qd3 {[%emt 0:01:49]} Qc4 {[%emt 0:02:05]} 23. Qxc4 {[%emt 0:02:46]} Nxc4 {[%emt 0:00:10]} 24. h4 {[%emt 0:00:12]} Kd7 {[%emt 0:01:04]} 25. Bc1 {[%emt 0:00:35]} Be7 {[%emt 0:03:46]} 26. h5 {[%emt 0:01:11]} gxh5 {[%emt 0:01:11]} 27. Rxh5 {[%emt 0:00:06]} Rxh5 {[%emt 0:00:37]} 28. gxh5 {[%emt 0:00:02]} Bf6 {[%emt 0:00:13]} 29. Rd3 {[%emt 0:07:50]} Kc6 {[%emt 0:08:01]} 30. a3 {[%emt 0:02:40]} Kb5 {[%emt 0:02:12]} 31. h6 {[%emt 0:05:16]} gxh6 {[%emt 0:01:45]} 32. Bxh6 {[%emt 0:00:04]} Nd6 {[%emt 0:00:24]} 33. Bf8 {[%emt 0:02:23]} Kc4 {[%emt 0:11:31]} 34. Rd1 {[%emt 0:04:08]} Nb5 {[%emt 0:05:06]} 35. Bxb4 {[%emt 0:01:06]} Nxb4 {[%emt 0:00:37]} 36. axb4 {[%emt 0:00:05]} Bxd4 {[%emt 0:01:41]} 37. Rc1+ {[%emt 0:04:12]} Kd3 {[%emt 0:03:27]} 38. Rc8 {[%emt 0:05:32]} f5 {[%emt 0:00:20]} 39. Rb8 {[%emt 0:01:20]} Nc7 {[%emt 0:00:07]} 40. b5 {[%emt 0:00:39]} Nd5 {[%emt 0:00:50]} 41. Rd8 {[%emt 0:05:35]} Nb6 {[%emt 0:22:39]} 42. f4 {[%emt 0:01:04]} Ke4 {[%emt 0:01:59]} 43. Rd6 {[%emt 0:01:11]} e5 {[%emt 0:02:28]} 44. fxe5 {[%emt 0:00:32]} Kxe5 {[%emt 0:00:01]} 45. Rd8 {[%emt 0:00:14]} f4 {[%emt 0:04:40]} 46. Re8+ {[%emt 0:02:15]} Kd5 {[%emt 0:00:08]} 47. Kc2 {[%emt 0:01:20]} Nc4 {[%emt 0:01:08]} 48. Rf8 {[%emt 0:03:50]} Be3 {[%emt 0:01:01]} 49. b6 {[%emt 0:03:08]} Nxb6 {[%emt 0:01:31]} 50. Kd3 {[%emt 0:00:04]} Nd7 {[%emt 0:03:15]} 51. Rd8 {[%emt 0:00:11]} Kd6 {[%emt 0:01:36]} 52. Ke4 {[%emt 0:03:04]} Ke7 {[%emt 0:00:13]} 53. Ra8 {[%emt 0:00:18]} Nc5+ {[%emt 0:00:35]} 54. Kf3 {[%emt 0:00:07]} Ne6 {[%emt 0:00:21]} 55. Ra5 {[%emt 0:01:52]} Kf6 {[%emt 0:01:05]} 56. b4 {[%emt 0:02:06]} Bd2 {[%emt 0:02:14]} 57. Kg4 {[%emt 0:01:37]} Nd4 {[%emt 0:03:24]} 58. Ra8 {[%emt 0:02:12]} Ke5 {[%emt 0:01:46]} 59. Re8+ {[%emt 0:00:05]} Kd5 {[%emt 0:00:40]} 60. Rd8+ {[%emt 0:02:05]} Kc4 {[%emt 0:00:33]} 1/2-1/2

[Event "Festival Groningen-A 2024"]
[Site "Groningen"]
[Date "2024.12.22"]
[Round "2.7"]
[White "Kollen, Zyon"]
[Black "Albers, Sasa"]
[Result "0-1"]
[ECO "B12"]
[WhiteElo "2344"]
[BlackElo "2268"]
[Annotator "RC"]
[PlyCount "88"]
[EventDate "2024.12.21"]
[EventType "swiss"]
[EventCountry "NED"]
[SourceTitle "playchess.com"]
[Source "ChessBase"]
[SourceQuality "1"]
[TimeControl "40/5400+30:1800+30"]

1. e4 {[%emt 0:00:04]} c6 {[%emt 0:00:03]} 2. d4 {[%emt 0:00:06]} d5 {[%emt 0:00:03]} 3. e5 {[%emt 0:00:05]} Bf5 {[%emt 0:00:25]} 4. Nf3 {[%emt 0:00:14]} e6 {[%emt 0:00:06]} 5. Be2 {[%emt 0:00:16]} c5 {[%emt 0:00:19]} 6. O-O {[%emt 0:01:09]} Nc6 {[%emt 0:00:35]} 7. c3 {[%emt 0:00:38]} a6 {[%emt 0:00:34]} 8. b3 {[%emt 0:11:50]} cxd4 {[%emt 0:07:17]} 9. Nxd4 {[%emt 0:02:30]} Nge7 {[%emt 0:02:06]} 10. Nxf5 {[%emt 0:07:23]} Nxf5 {[%emt 0:00:07]} 11. Bd3 {[%emt 0:00:58]} g6 {[%emt 0:00:51]} 12. Re1 {[%emt 0:04:43]} Bc5 {[%emt 0:09:28]} 13. Nd2 {[%emt 0:11:58]} Rc8 {[%emt 0:13:43]} 14. Nf3 {[%emt 0:03:18]} Nh4 {[%emt 0:06:07]} 15. g3 {[%emt 0:05:26]} Nxf3+ {[%emt 0:00:48]} 16. Qxf3 {[%emt 0:00:02]} Qc7 {[%emt 0:10:54]} 17. Bf4 {[%emt 0:15:29]} Bf8 {[%emt 0:05:15]} 18. h4 {[%emt 0:03:53]} Bg7 {[%emt 0:01:29]} 19. Qe3 {[%emt 0:03:06]} h6 {[%emt 0:07:20]} 20. Rac1 {[%emt 0:03:53]} Qa5 {[%emt 0:09:15]} 21. a4 {[%emt 0:04:32]} g5 {[%emt 0:02:11]} 22. hxg5 {[%emt 0:00:14]} hxg5 {[%emt 0:00:01]} 23. Bxg5 {[%emt 0:00:07]} Nxe5 {[%emt 0:00:22]} 24. Be2 {[%emt 0:05:07]} Qc5 {[%emt 0:02:15]} 25. Qd2 {[%emt 0:04:26]} Qc6 {[%emt 0:01:12]} 26. f3 {[%emt 0:02:06]} Qb6+ {[%emt 0:11:45]} 27. Be3 {[%emt 0:01:12]} Qxb3 {[%emt 0:01:21]} 28. Bd4 {[%emt 0:00:57]} Rg8 {[%emt 0:00:18]} 29. Kg2 {[%emt 0:04:23]} Ng6 {[%emt 0:03:12]} 30. Rb1 {[%emt 0:01:55]} Qxa4 {[%emt 0:00:09]} 31. Rxb7 {[%emt 0:00:40]} Bxd4 {[%emt 0:00:29]} 32. cxd4 {[%emt 0:00:13]} Nh4+ {[%emt 0:00:54]} 33. Kf1 {[%emt 0:03:10]} Nf5 {[%emt 0:00:01]} 34. Rc1 {[%emt 0:00:38]} Nxg3+ {[%emt 0:04:25]} 35. Ke1 {[%emt 0:00:16]} Rxc1+ {[%emt 0:01:00]} 36. Qxc1 {[%emt 0:00:02]} Qa5+ {[%emt 0:00:13]} 37. Kd1 {[%emt 0:01:21]} Qa4+ {[%emt 0:00:18]} 38. Ke1 {[%emt 0:00:04]} Qa5+ {[%emt 0:00:02]} 39. Kf2 {[%emt 0:00:18]} Qd8 {[%emt 0:00:01]} 40. Qb1 {[%emt 0:01:13]} Ne4+ {[%emt 0:03:01]} 41. Ke3 {[%emt 0:05:40]} Qg5+ {[%emt 0:01:23]} 42. f4 {[%emt 0:00:11]} Qg3+ {[%emt 0:00:13]} 43. Bf3 {[%emt 0:00:07]} Qf2+ {[%emt 0:00:09]} 44. Kd3 {[%emt 0:00:04]} Qd2# {[%emt 0:30:50]} 0-1

[Event "Festival Groningen-A 2024"]
[Site "Groningen"]
[Date "2024.12.22"]
[Round "2.8"]
[White "Schilstra, Laurens"]
[Black "Labruyere, Roger"]
[Result "0-1"]
[ECO "B66"]
[WhiteElo "2150"]
[BlackElo "2344"]
[Annotator "RC"]
[PlyCount "84"]
[EventDate "2024.12.21"]
[EventType "swiss"]
[EventCountry "NED"]
[SourceTitle "playchess.com"]
[Source "ChessBase"]
[SourceQuality "1"]
[TimeControl "40/5400+30:1800+30"]

1. e4 {[%emt 0:00:03]} c5 {[%emt 0:00:40]} 2. Nf3 {[%emt 0:00:09]} d6 {[%emt 0:00:04]} 3. d4 {[%emt 0:00:07]} cxd4 {[%emt 0:00:03]} 4. Nxd4 {[%emt 0:00:10]} Nf6 {[%emt 0:00:04]} 5. Nc3 {[%emt 0:00:05]} a6 {[%emt 0:00:03]} 6. Bg5 {[%emt 0:00:06]} e6 {[%emt 0:00:50]} 7. f4 {[%emt 0:00:07]} h6 {[%emt 0:00:57]} 8. Bxf6 {[%emt 0:00:11]} Qxf6 {[%emt 0:00:32]} 9. Qd2 {[%emt 0:00:07]} Nc6 {[%emt 0:03:10]} 10. Nxc6 {[%emt 0:00:35]} bxc6 {[%emt 0:00:32]} 11. O-O-O {[%emt 0:00:07]} Qd8 {[%emt 0:00:29]} 12. Bc4 {[%emt 0:00:09]} Be7 {[%emt 0:00:54]} 13. Kb1 {[%emt 0:02:21]} O-O {[%emt 0:04:51]} 14. Bb3 {[%emt 0:01:05]} Qc7 {[%emt 0:03:42]} 15. Rhf1 {[%emt 0:10:05]} c5 {[%emt 0:03:01]} 16. Bc4 {[%emt 0:01:37]} Rb8 {[%emt 0:05:46]} 17. b3 {[%emt 0:11:09]} Bf6 {[%emt 0:11:46]} 18. g4 {[%emt 0:11:36]} Qb7 {[%emt 0:05:33]} 19. Na4 {[%emt 0:09:20]} Bd4 {[%emt 0:25:17]} 20. c3 {[%emt 0:23:57]} Bf6 {[%emt 0:05:34]} 21. Qxd6 {[%emt 0:02:43]} Rd8 {[%emt 0:00:10]} 22. Qxd8+ {[%emt 0:06:07]} Bxd8 {[%emt 0:00:08]} 23. Rxd8+ {[%emt 0:00:05]} Kh7 {[%emt 0:00:06]} 24. e5 {[%emt 0:00:19]} g6 {[%emt 0:03:27]} 25. Kb2 {[%emt 0:06:02]} a5 {[%emt 0:11:28]} 26. Ka3 {[%emt 0:02:52]} Qc7 {[%emt 0:07:46]} 27. Rfd1 {[%emt 0:00:33]} Kg7 {[%emt 0:00:45]} 28. R1d6 {[%emt 0:02:42]} g5 {[%emt 0:03:24]} 29. f5 {[%emt 0:03:27]} exf5 {[%emt 0:00:05]} 30. Re8 {[%emt 0:01:49]} Be6 {[%emt 0:01:09]} 31. Bxe6 {[%emt 0:01:12]} Rxe8 {[%emt 0:00:39]} 32. Rd7 {[%emt 0:00:04]} Qxe5 {[%emt 0:00:41]} 33. Rxf7+ {[%emt 0:00:03]} Kh8 {[%emt 0:00:40]} 34. gxf5 {[%emt 0:00:10]} Qe3 {[%emt 0:00:56]} 35. Rf6 {[%emt 0:02:45]} Qc1+ {[%emt 0:00:52]} 36. Nb2 {[%emt 0:00:04]} Qxc3 {[%emt 0:00:10]} 37. Rxh6+ {[%emt 0:00:08]} Kg7 {[%emt 0:00:03]} 38. Rg6+ {[%emt 0:00:10]} Kh7 {[%emt 0:00:04]} 39. Nc4 {[%emt 0:00:53]} a4 {[%emt 0:00:48]} 40. Nb6 {[%emt 0:02:54]} Qb4+ {[%emt 0:01:02]} 41. Kb2 {[%emt 0:30:18]} a3+ {[%emt 0:30:36]} 42. Kc2 {[%emt 0:00:37]} Qe4+ {[%emt 0:00:11]} 0-1

[Event "Festival Groningen-A 2024"]
[Site "Groningen"]
[Date "2024.12.22"]
[Round "2.16"]
[White "Wempe, Joost"]
[Black "Palchuk, Andrii"]
[Result "0-1"]
[ECO "A49"]
[WhiteElo "2233"]
[BlackElo "2372"]
[Annotator "RC"]
[PlyCount "40"]
[EventDate "2024.12.21"]
[EventType "swiss"]
[EventCountry "NED"]
[SourceTitle "playchess.com"]
[Source "ChessBase"]
[SourceQuality "1"]
[TimeControl "40/5400+30:1800+30"]

1. d4 {[%emt 0:00:02]} g6 {[%emt 0:11:33]} 2. Nf3 {[%emt 0:00:24]} Bg7 {[%emt 0:00:09]} 3. g3 {[%emt 0:00:41]} Nf6 {[%emt 0:00:08]} 4. Bg2 {[%emt 0:00:05]} O-O {[%emt 0:00:13]} 5. O-O {[%emt 0:00:05]} d6 {[%emt 0:00:05]} 6. b3 {[%emt 0:00:08]} e5 {[%emt 0:00:06]} 7. dxe5 {[%emt 0:00:20]} dxe5 {[%emt 0:00:05]} 8. Ba3 {[%emt 0:09:21]} e4 {[%emt 0:00:06]} 9. Nd4 {[%emt 0:04:40]} Re8 {[%emt 0:01:19]} 10. c4 {[%emt 0:00:27]} e3 {[%emt 0:04:04]} 11. Nc3 {[%emt 0:00:18]} exf2+ {[%emt 0:09:42]} 12. Kh1 {[%emt 0:00:04]} c6 {[%emt 0:00:08]} 13. Nc2 {[%emt 0:39:27]} Qa5 {[%emt 0:05:27]} 14. Qd2 {[%emt 0:25:34]} Rd8 {[%emt 0:10:05]} 15. Bd6 {[%emt 0:06:52]} Ng4 {[%emt 0:01:08]} 16. b4 {[%emt 0:02:24]} Qh5 {[%emt 0:00:07]} 17. h4 {[%emt 0:00:23]} Bxc3 {[%emt 0:15:38]} 18. Qxc3 {[%emt 0:00:05]} Rxd6 {[%emt 0:00:04]} 19. Rad1 {[%emt 0:00:09]} Rxd1 {[%emt 0:00:55]} 20. Rxd1 {[%emt 0:00:06]} Nd7 {[%emt 0:00:03]} 0-1

[Event "Festival Groningen-A 2024"]
[Site "Groningen"]
[Date "2024.12.22"]
[Round "2.17"]
[White "Slagboom, Leandro"]
[Black "Grooten, Herman"]
[Result "1-0"]
[ECO "B40"]
[WhiteElo "2370"]
[BlackElo "2183"]
[Annotator "RC"]
[PlyCount "93"]
[EventDate "2024.12.21"]
[EventType "swiss"]
[EventCountry "NED"]
[SourceTitle "playchess.com"]
[Source "ChessBase"]
[SourceQuality "1"]
[TimeControl "40/5400+30:1800+30"]

1. e4 {[%emt 0:00:03]} c5 {[%emt 0:00:11]} 2. Nf3 {[%emt 0:00:07]} e6 {[%emt 0:00:08]} 3. c3 {[%emt 0:00:21]} Nf6 {[%emt 0:00:48]} 4. Bd3 {[%emt 0:00:08]} d5 {[%emt 0:02:33]} 5. e5 {[%emt 0:00:16]} Nfd7 {[%emt 0:00:15]} 6. Bc2 {[%emt 0:00:21]} Nc6 {[%emt 0:06:41]} 7. d4 {[%emt 0:00:13]} Be7 {[%emt 0:00:50]} 8. a3 {[%emt 0:08:57]} a5 {[%emt 0:02:18]} 9. h4 {[%emt 0:05:43]} f6 {[%emt 0:13:16]} 10. exf6 {[%emt 0:00:27]} Nxf6 {[%emt 0:00:49]} 11. h5 {[%emt 0:02:05]} Qc7 {[%emt 0:01:12]} 12. Qe2 {[%emt 0:11:34]} Bd7 {[%emt 0:02:13]} 13. h6 {[%emt 0:12:38]} g6 {[%emt 0:00:28]} 14. Bg5 {[%emt 0:03:57]} O-O {[%emt 0:09:18]} 15. Nbd2 {[%emt 0:03:58]} cxd4 {[%emt 0:05:13]} 16. cxd4 {[%emt 0:01:12]} Bd6 {[%emt 0:03:32]} 17. O-O {[%emt 0:07:41]} Ng4 {[%emt 0:06:28]} 18. Qd3 {[%emt 0:05:22]} Bh2+ {[%emt 0:01:24]} 19. Kh1 {[%emt 0:00:07]} Bf4 {[%emt 0:00:07]} 20. Bxf4 {[%emt 0:07:02]} Qxf4 {[%emt 0:05:01]} 21. g3 {[%emt 0:00:05]} Qxh6+ {[%emt 0:00:32]} 22. Kg2 {[%emt 0:00:05]} Qg7 {[%emt 0:00:58]} 23. Rae1 {[%emt 0:01:33]} Rac8 {[%emt 0:06:43]} 24. Ba4 {[%emt 0:01:54]} Rf5 {[%emt 0:03:12]} 25. Bxc6 {[%emt 0:05:33]} bxc6 {[%emt 0:01:35]} 26. Nh4 {[%emt 0:01:44]} Rh5 {[%emt 0:00:58]} 27. f4 {[%emt 0:02:26]} c5 {[%emt 0:04:16]} 28. Ndf3 {[%emt 0:01:51]} Rb8 {[%emt 0:00:47]} 29. Qc3 {[%emt 0:02:04]} c4 {[%emt 0:05:12]} 30. Qxa5 {[%emt 0:03:52]} Rxb2+ {[%emt 0:01:32]} 31. Kg1 {[%emt 0:00:42]} Qe7 {[%emt 0:06:23]} 32. Rb1 {[%emt 0:03:19]} Rb3 {[%emt 0:02:11]} 33. Rxb3 {[%emt 0:00:49]} cxb3 {[%emt 0:00:04]} 34. Rb1 {[%emt 0:00:15]} g5 {[%emt 0:03:52]} 35. Nxg5 {[%emt 0:04:46]} Rxg5 {[%emt 0:00:12]} 36. fxg5 {[%emt 0:00:05]} Qxg5 {[%emt 0:00:09]} 37. Qe1 {[%emt 0:00:46]} Qf6 {[%emt 0:00:47]} 38. Qd2 {[%emt 0:00:38]} e5 {[%emt 0:02:53]} 39. Rf1 {[%emt 0:02:29]} Qd8 {[%emt 0:01:10]} 40. dxe5 {[%emt 0:01:46]} Qb6+ {[%emt 0:00:54]} 41. Kh1 {[%emt 0:31:06]} Ne3 {[%emt 0:30:20]} 42. Qf2 {[%emt 0:00:00]} Qh6 {[%emt 0:00:00]} 43. Qf7+ {[%emt 0:00:00]} Kh8 {[%emt 0:00:00]} 44. e6 {[%emt 0:00:00]} Nxf1 {[%emt 0:00:00]} 45. exd7 {[%emt 0:00:00]} Nxg3+ {[%emt 0:00:00]} 46. Kg2 {[%emt 0:00:00]} Qd2+ {[%emt 0:00:00]} 47. Kh3 {[%emt 0:00:00]} 1-0

[Event "Festival Groningen-A 2024"]
[Site "Groningen"]
[Date "2024.12.23"]
[Round "3.7"]
[White "Poetsch, Hagen"]
[Black "Laxman, R.R."]
[Result "1/2-1/2"]
[ECO "C54"]
[WhiteElo "2491"]
[BlackElo "2310"]
[Annotator "RC"]
[PlyCount "60"]
[EventDate "2024.12.21"]
[EventType "swiss"]
[EventCountry "NED"]
[SourceTitle "playchess.com"]
[Source "ChessBase"]
[SourceQuality "1"]
[TimeControl "40/5400+30:1800+30"]

1. e4 {[%emt 0:00:02]} e5 {[%emt 0:00:23]} 2. Nf3 {[%emt 0:00:05]} Nc6 {[%emt 0:00:10]} 3. Bc4 {[%emt 0:00:06]} Bc5 {[%emt 0:00:05]} 4. c3 {[%emt 0:00:09]} Nf6 {[%emt 0:00:07]} 5. d4 {[%emt 0:00:05]} exd4 {[%emt 0:00:03]} 6. cxd4 {[%emt 0:00:27]} Bb4+ {[%emt 0:00:07]} 7. Bd2 {[%emt 0:00:06]} Bxd2+ {[%emt 0:00:35]} 8. Nbxd2 {[%emt 0:00:05]} d5 {[%emt 0:00:05]} 9. exd5 {[%emt 0:00:07]} Nxd5 {[%emt 0:00:02]} 10. Qb3 {[%emt 0:00:13]} Nce7 {[%emt 0:02:06]} 11. O-O {[%emt 0:00:12]} O-O {[%emt 0:00:12]} 12. Rfe1 {[%emt 0:00:19]} c6 {[%emt 0:00:09]} 13. Ne4 {[%emt 0:00:21]} Qb6 {[%emt 0:07:12]} 14. Qa3 {[%emt 0:00:10]} Bg4 {[%emt 0:04:14]} 15. Ne5 {[%emt 0:02:49]} Qxd4 {[%emt 0:04:22]} 16. Nd6 {[%emt 0:20:29]} Be6 {[%emt 0:03:42]} 17. Nxb7 {[%emt 0:02:26]} Rab8 {[%emt 0:01:02]} 18. Rad1 {[%emt 0:02:29]} Qb6 {[%emt 0:00:45]} 19. Nc5 {[%emt 0:02:25]} Qxb2 {[%emt 0:00:25]} 20. Qxb2 {[%emt 0:01:42]} Rxb2 {[%emt 0:00:12]} 21. Ned3 {[%emt 0:13:46]} Rbb8 {[%emt 0:04:10]} 22. Nxe6 {[%emt 0:00:08]} fxe6 {[%emt 0:00:02]} 23. Rxe6 {[%emt 0:00:27]} Kh8 {[%emt 0:00:01]} 24. Ne5 {[%emt 0:05:44]} Rb2 {[%emt 0:03:30]} 25. f3 {[%emt 0:06:01]} Nf5 {[%emt 0:07:45]} 26. Rxc6 {[%emt 0:02:19]} Nde3 {[%emt 0:00:25]} 27. Nf7+ {[%emt 0:05:36]} Kg8 {[%emt 0:02:13]} 28. Nh6+ {[%emt 0:00:06]} Kh8 {[%emt 0:00:03]} 29. Nf7+ {[%emt 0:00:08]} Kg8 {[%emt 0:00:10]} 30. Nh6+ {[%emt 0:00:06]} Kh8 {[%emt 0:00:04]} 1/2-1/2